{"text_format":"2","workbook":"xlsx","n_sheets":2,"sheets":["Budjetti","Käyttöohje"],"not_rendered":{"charts":0,"images":0,"macros":0,"external_links":0,"defined_names":0,"comments":0,"pivot_tables":0},"unopened":[],"bounds":{"document_bytes":16777216,"sheet_cells":100000,"run_cost":"one","rows_first":2000,"rows_last":500,"rows_between":2000,"halvings":0,"cell_chars":16384,"cell_head_chars":4096},"cells_cut":0,"cells_raw":0,"read":"whole","date_system":"1900"}

{"sheet":"Budjetti","index":0,"n_rows":60,"n_cols":9,"rows_kept":60,"cut":false,"hidden":false,"merged":[[49,1,49,6],[59,0,59,7],[12,1,12,6],[16,1,16,6],[22,1,22,6],[27,1,27,6],[31,1,31,6],[1,0,1,7],[2,0,2,7],[3,0,3,7],[5,2,5,3],[7,1,7,6]]}
[]
["NAVI  –  UUDEN YRITTÄJÄN NAVIGAATTORI",{"$nulls":7},"💡 Selitys ja esimerkki"]
["Budjettipohja – maksuton pohja yrittäjyyden alkuvaiheen tueksi"]
["Etelä-Karjalan Yrittäjät  |  Yrittäjyyden äitiyspakkaus -hanke 2025–2026  |  Maksuton työkalu yrittäjän tueksi"]
[]
[null,"Yrityksen nimi",{"$nulls":6},"Kirjoita yrityksesi nimi tähän."]
[null,"Tulosryhmä / Tili","Edellinen tilikausi €","Budjetti tilikaudelle €",null,"Muutos €","Muutos %",null,"💡 Mitä tämä tarkoittaa?"]
[null,"MYYNTITUOTOT",{"$nulls":6},"💡 MYYNTITUOTOT — Nämä ovat yrityksesi tuloja"]
[null,"   Yleiset myyntitilit yhteensä",100000,102000,null,{"$f":"D9-C9","v":2000},{"$f":"IFERROR(F9/C9,\"\")","v":0.02},null,"▸ Yleiset myyntitilit yhteensä\nKaikki säännöllinen myynti — ILMAN ALV:tä.\nEsim: kampaamo saa 4 000 € asiakkaita / kk, verkkokauppa 2 500 € tilauksia / kk.\n⚠️ Älä lisää ALV:tä tähän — vain nettomyynti."]
[null,"   Muu liikevaihto yhteensä",2000,2000,null,{"$f":"D10-C10","v":0},{"$f":"IFERROR(F10/C10,\"\")","v":0},null,"▸ Muu liikevaihto yhteensä\nEpäsäännölliset tai muut tulot.\nEsim: myit vanhan laitteen 200 €, sait projektipalkkion 500 €.\nJätä tyhjäksi jos ei ole."]
[null,"LIIKEVAIHTO YHTEENSÄ",{"$f":"SUM(C9:C10)","v":102000},{"$f":"SUM(D9:D10)","v":104000},null,{"$f":"D11-C11","v":2000},{"$f":"IFERROR(F11/C11,\"\")","v":1.9607843137254902E-2},null,"▸ LIIKEVAIHTO YHTEENSÄ\n✅ Kaikki tulosi yhteensä. Lasketaan automaattisesti.\nTämä on se luku johon kaikkia kuluja verrataan."]
[]
[null,"LIIKETOIMINNAN MUUT TUOTOT",{"$nulls":6},"💡 MUUT TUOTOT"]
[null,"   Varastojen muutos, valmiit ja keskeneräiset",10000,-5000,null,{"$f":"D14-C14","v":-15000},{"$f":"IFERROR(F14/C14,\"\")","v":-1.5},null,"▸ Varastojen muutos\nJos pidät varastoa (esim. myymälä tai verkkokauppa): kirjoita varaston arvomuutos.\nJos varasto kasvoi 10 000 €, merkitse +10 000. Jos pieneni, merkitse miinuksella.\n✏️ Jos sinulla EI ole varastoa, jätä 0."]
[null,"   Liiketoiminnan muut tuotot yhteensä",5000,6000,null,{"$f":"D15-C15","v":1000},{"$f":"IFERROR(F15/C15,\"\")","v":0.2},null,"▸ Liiketoiminnan muut tuotot\nAvustukset, korvaukset, vuokratulot tai muut satunnaiset tulot.\nEsim: sait 2 000 € kehittämisavustusta tai vuokrasit laitteistoa 500 €.\nJätä 0 jos ei ole."]
[]
[null,"MATERIAALIT JA PALVELUT",{"$nulls":6},"💡 MATERIAALIT JA PALVELUT — Tuotantoon menevät kulut"]
[null,"   Ostot tilikauden aikana yhteensä",-30000,-31000,null,{"$f":"D18-C18","v":-1000},{"$f":"IFERROR(F18/C18,\"\")","v":3.3333333333333333E-2},null,"▸ Ostot tilikauden aikana\nKaikki tavarat ja materiaalit joita ostit liiketoimintaan.\nEsim: kampaamo ostaa hiustuotteita −5 000 €, verkkokauppa ostaa tavaroita −15 000 €.\nMerkitse miinusmerkkisenä (kulut ovat negatiivisia)."]
[null,"   Varastojen muutos yhteensä",5000,5000,null,{"$f":"D19-C19","v":0},{"$f":"IFERROR(F19/C19,\"\")","v":0},null,"▸ Varastojen muutos\nVaraston arvomuutos materiaalipuolella. Jätä 0 jos ei varastoa."]
[null,"   Ulkopuoliset palvelut yhteensä",-10000,-10000,null,{"$f":"D20-C20","v":0},{"$f":"IFERROR(F20/C20,\"\")","v":0},null,"▸ Ulkopuoliset palvelut\nOstettu työ tai ulkoistetut palvelut jotka kuuluvat suoraan tuotantoon.\nEsim: alihankkija tekee osan tuotteesta, ulkopuolinen graafikko."]
[null,"Materiaalit ja palvelut yhteensä",{"$f":"SUM(C18:C20)","v":-35000},{"$f":"SUM(D18:D20)","v":-36000},null,{"$f":"D21-C21","v":-1000},{"$f":"IFERROR(F21/C21,\"\")","v":2.8571428571428571E-2},null,"▸ Materiaalit ja palvelut yhteensä\n✅ Lasketaan automaattisesti."]
[]
[null,"HENKILÖSTÖKULUT",{"$nulls":6},"💡 HENKILÖSTÖKULUT — Palkat ja niihin liittyvät kulut"]
[null,"   Palkat ja palkkiot yhteensä",-20000,-21000,null,{"$f":"D24-C24","v":-1000},{"$f":"IFERROR(F24/C24,\"\")","v":0.05},null,"▸ Palkat ja palkkiot\nKaikki maksetut palkat, myös sinulle itsellesi jos otat palkkaa.\nEsim: oma palkka −2 000 €/kk = −24 000 €/vuosi, + yksi osa-aikainen −800 €/kk.\nMerkitse miinusmerkkisenä."]
[null,"   Henkilösivukulut yhteensä",-5000,-5000,null,{"$f":"D25-C25","v":0},{"$f":"IFERROR(F25/C25,\"\")","v":0},null,"▸ Henkilösivukulut\nTyönantajan sivukulut: eläkemaksut, sairausvakuutus jne.\nYleensä n. 20–25 % maksetuista palkoista. Lasketaan automaattisesti jos merkitset palkat."]
[null,"Henkilöstökulut yhteensä",{"$f":"SUM(C24:C25)","v":-25000},{"$f":"SUM(D24:D25)","v":-26000},null,{"$f":"D26-C26","v":-1000},{"$f":"IFERROR(F26/C26,\"\")","v":0.04},null,"▸ Henkilöstökulut yhteensä\n✅ Lasketaan automaattisesti."]
[]
[null,"POISTOT JA ARVONALENTUMISET",{"$nulls":6},"💡 POISTOT — Koneiden ja laitteiden arvon väheneminen"]
[null,"   Suunnitelman mukaiset poistot yhteensä",-3000,-3000,null,{"$f":"D29-C29","v":0},{"$f":"IFERROR(F29/C29,\"\")","v":0},null,"▸ Suunnitelman mukaiset poistot\nKoneiden, laitteiden ja kaluston arvon pieneneminen vuosittain.\nEsim: ostin 6 000 € koneen → se poistetaan 3 vuodessa → −2 000 €/vuosi.\n✏️ Jos sinulla EI ole isoja koneita tai laitteita, jätä 0."]
[null,"Poistot ja arvonalentumiset yhteensä",{"$f":"SUM(C29)","v":-3000},{"$f":"SUM(D29)","v":-3000},null,{"$f":"D30-C30","v":0},{"$f":"IFERROR(F30/C30,\"\")","v":0},null,"▸ Poistot yhteensä\n✅ Lasketaan automaattisesti."]
[]
[null,"LIIKETOIMINNAN MUUT KULUT",{"$nulls":6},"💡 LIIKETOIMINNAN MUUT KULUT — Kaikki muut yrityskulut"]
[null,"   Vapaaehtoiset henkilösivukulut yhteensä",-4000,-4000,null,{"$f":"D33-C33","v":0},{"$f":"IFERROR(F33/C33,\"\")","v":0},null,"▸ Vapaaehtoiset henkilösivukulut\nVapaaehtoiset henkilöstöedut: esim. lounasetu, liikuntaetu, puhelinetu.\nJätä 0 jos ei ole."]
[null,"   Toimitilakulut yhteensä",-3000,-3000,null,0,0,null,"▸ Toimitilakulut\nToimiston, myymälän tai varaston vuokra + sähkö + siivous.\nEsim: toimistovuokra 400 € + sähkö 80 € = −480 €/kk"]
[null,"   Ajoneuvokulut yhteensä",-500,-500,null,0,0,null,"▸ Ajoneuvokulut\nYrityksen ajoneuvon polttoaine, huolto, vakuutukset.\nJätä 0 jos teet työn kotoa tai asiakkaiden luona ilman omaa autoa."]
[null,"   Atk-laite ja -ohjelmistokulut yhteensä",-1000,-1000,null,0,0,null,"▸ Atk-laite- ja ohjelmistokulut\nTietokone, tulostin, pilvipalvelut, tilausohjelmistot.\nEsim: Adobe 60 €/kk, Wolt for Business 30 €/kk, Shopify 30 €/kk."]
[null,"   Muut kone- ja kalustokulut yhteensä",-1000,-1000,null,0,0,null,"▸ Muut kone- ja kalustokulut\nMuiden laitteiden ja kaluston huolto ja vuokrat.\nEsim: kahvilakoneen vuokra, kampaamon tuolien leasing."]
[null,"   Matkakulut yhteensä",-826,-900,null,-74,8.9588377723970949E-2,null,"▸ Matkakulut\nTyömatkoja: kilometrikorvaukset, junat, lennot, hotellit.\nVero.fi antaa vuosittain verovapaan kilometrikorvaustason."]
[null,"   Edustuskulut yhteensä",-500,-500,null,0,0,null,"▸ Edustuskulut\nAsiakastapaamisiin liittyvät kulut. Verotuksessa tiukat rajat.\nEsim: kahvit asiakkaalle, pieni lahja. Merkitse tarkasti."]
[null,"   Myynti- ja markkinointikulut yhteensä",-500,-500,null,0,0,null,"▸ Myynti- ja markkinointikulut\nMainokset, some-mainokset, flyerit, messut, nettisivut.\nEsim: Facebook-mainokset 100 €/kk, nettisivudomaini 20 €/vuosi."]
[null,"   Tutkimus- ja kehityskulut yhteensä",-100,-500,null,-400,4,null,"▸ Tutkimus- ja kehityskulut\nUusien tuotteiden tai palvelujen kehittäminen.\nEsim: koulutus, prototyypit, testit."]
[null,"   Hallintopalvelut yhteensä",-1000,-1000,null,0,0,null,"▸ Hallintopalvelut\nKirjanpitäjä, lakimies, konsultti.\nEsim: tilitoimisto 150 €/kk = −1 800 €/vuosi."]
[null,"   Muut hallintokulut yhteensä",-2000,-2000,null,0,0,null,"▸ Muut hallintokulut\nToimistotarvikkeet, postikulut, pankkikulut, vakuutukset.\nEsim: yrittäjävakuutus 600 €/vuosi, pankki 10 €/kk."]
[null,"   Muut liikekulut yhteensä",-1000,-1000,null,0,0,null,"▸ Muut liikekulut\nKaikki muut kulut jotka eivät sovi yllä oleviin kategorioihin."]
[null,"Liiketoiminnan muut kulut yhteensä",{"$f":"SUM(C33:C44)","v":-15426},{"$f":"SUM(D33:D44)","v":-15900},null,-474,3.0727343446129912E-2,null,"▸ Muut kulut yhteensä\n✅ Lasketaan automaattisesti."]
[]
[null,"LIIKEVOITTO (-TAPPIO)",{"$f":"SUM(C11,C14,C15,C21,C26,C30,C45)","v":38574},{"$f":"SUM(D11,D14,D15,D21,D26,D30,D45)","v":24100},null,{"$f":"D47-C47","v":-14474},{"$f":"IFERROR(F47/C47,\"\")","v":-0.37522683672940321},null,"▸ LIIKEVOITTO (-TAPPIO)\nKaikki tuotot MIINUS kaikki kulut.\n✅ Positiivinen = yritys tuottaa. Negatiivinen = tappiolla.\nTämä EI ole vielä sinulle jäävä summa — siitä vähennetään vielä verot."]
[null,"KÄYTTÖKATE",{"$f":"C47-C30","v":41574},{"$f":"D47-D30","v":27100},null,{"$f":"D48-C48","v":-14474},{"$f":"IFERROR(F48/C48,\"\")","v":-0.34815028623659017},null,"▸ KÄYTTÖKATE (EBITDA)\nLiikevoitto ENNEN poistoja.\nKertoo yrityksesi operatiivisen tehokkuuden — onko toiminta kannattavaa ennen investointeja?\nHyvä käyttökate on positiivinen luku."]
[]
[null,"% LIIKEVAIHDOSTA",{"$nulls":6},"💡 % LIIKEVAIHDOSTA — Kustannusrakenne prosentteina"]
[null,"Erä","Edellinen tilikausi","Budjetti tilikaudelle",{"$nulls":4},"Nämä luvut kertovat, kuinka suuren osan liikevaihdostasi kukin kuluryhmä syö."]
[null,"Liiketoiminnan muut tuotot yhteensä",{"$f":"IFERROR(C15/C11,\"\")","v":4.9019607843137254E-2},{"$f":"IFERROR(D15/D11,\"\")","v":5.7692307692307696E-2},{"$nulls":4},"Esim. 5 % = muut tuotot ovat 5 % liikevaihdostasi."]
[null,"Materiaalit ja palvelut yhteensä",{"$f":"-IFERROR(C21/C11,\"\")","v":0.34313725490196079},{"$f":"-IFERROR(D21/D11,\"\")","v":0.34615384615384615},{"$nulls":4},"Esim. −30 % = materiaaleihin menee 30 % liikevaihdostasi."]
[null,"Henkilöstökulut yhteensä",{"$f":"-IFERROR(C26/C11,\"\")","v":0.24509803921568626},{"$f":"-IFERROR(D26/D11,\"\")","v":0.25},{"$nulls":4},"Esim. −40 % = henkilöstökulut ovat 40 % liikevaihdostasi."]
[null,"Poistot ja arvonalentumiset yhteensä",{"$f":"-IFERROR(C30/C11,\"\")","v":2.9411764705882353E-2},{"$f":"-IFERROR(D30/D11,\"\")","v":2.8846153846153848E-2},{"$nulls":4},"Esim. −5 % = poistot ovat 5 % liikevaihdostasi."]
[null,"Liiketoiminnan muut kulut yhteensä",{"$f":"-IFERROR(C45/C11,\"\")","v":0.15123529411764705},{"$f":"-IFERROR(D45/D11,\"\")","v":0.1528846153846154},{"$nulls":4},"Esim. −15 % = muut kulut ovat 15 % liikevaihdostasi."]
[null,"LIIKEVOITTO (-TAPPIO)",{"$f":"IFERROR(C47/C11,\"\")","v":0.37817647058823528},{"$f":"IFERROR(D47/D11,\"\")","v":0.23173076923076924},{"$nulls":4},"✅ Tavoite: liikevoitto positiivinen (yli 0 %)."]
[null,"KÄYTTÖKATE",{"$f":"IFERROR(C48/C11,\"\")","v":0.40758823529411764},{"$f":"IFERROR(D48/D11,\"\")","v":0.26057692307692309},{"$nulls":4},"✅ Hyvä käyttökate on yleensä 10–30 % toimialasta riippuen."]
[]
["© Etelä-Karjalan Yrittäjät  |  Yrittäjyyden äitiyspakkaus -hanke 2025–2026  |  Maksuton työkalu – saa vapaasti käyttää ja muokata"]

{"sheet":"Käyttöohje","index":1,"n_rows":15,"n_cols":3,"rows_kept":15,"cut":false,"hidden":false,"merged":[[1,0,1,2],[2,0,2,2],[3,0,3,2],[4,0,4,2],[14,0,14,2]]}
[]
["NAVI  –  BUDJETTIPOHJAN KÄYTTÖOHJE"]
["Etelä-Karjalan Yrittäjät  |  Yrittäjyyden äitiyspakkaus -hanke 2025–2026"]
[]
["KÄYTTÖOHJEET"]
[null,"Täytä oranssin sävyiset solut","Syötä edellisen tilikauden toteutuneet luvut ja budjettisi tulevalle tilikaudelle. Jätä tyhjäksi jos luku ei koske sinua."]
[null,"Muutos-sarakkeet","Muutos € ja Muutos % lasketaan automaattisesti – ne kertovat, kuinka paljon budjetti poikkeaa toteutuneesta."]
[null,"% Liikevaihdosta","Taulukon alaosa näyttää tärkeimpien kuluryhmien osuuden liikevaihdosta. Hyvä tapa seurata kustannusrakennetta."]
[null,"Liikevaihto","Merkitse vain arvonlisäveroton myynti (ilman ALV). Liikevaihto = kaikki myyntitulot yhteensä."]
[null,"Negatiiviset luvut","Merkitse kulut miinusmerkkisinä (esim. -5000). Tuotot merkitään positiivisina."]
[null,"Käyttökate (EBITDA)","Liikevoitto ennen poistoja. Kertoo operatiivisen kannattavuuden ilman investointien vaikutusta."]
[null,"Lisää tai poista rivejä","Voit lisätä omia rivejä kuluryhmien sisään. Muista päivittää SUM-kaavat vastaamaan uusia rivejä."]
[null,"Tiedoston jakaminen","Tiedosto on maksuton ja vapaasti käytettävissä. Pohjaa saa muokata omaan tarpeeseen."]
[]
["© Etelä-Karjalan Yrittäjät  |  Yrittäjyyden äitiyspakkaus -hanke 2025–2026  |  Maksuton työkalu – saa vapaasti käyttää ja muokata"]